bitfinex-derivatives/quotes_SOLF0:USTF0_20250207
["timestamp","ask_amount","ask_price","bid_price","bid_amount"]
[1738949441168,0.92096815,195.67,195.5,5.1127]
[1738949441366,0.03342201,195.51,195.5,5.1127]
[1738949441559,22.5940388,195.68,195.49,22.5940388]
[1738949441763,5.46141118,195.67,195.49,22.5940388]
[1738949441959,4.54,195.67,195.49,22.5940388]
[1738949442160,4.54,195.67,195.58,5.1106]
[1738949442660,5.1088,195.66,195.57,5.1107]
[1738949442867,0.03295122,195.64,195.61,0.0390164]
[1738949443368,5.1096,195.62,195.61,0.0390164]
[1738949443869,5.1096,195.62,195.61,1.64e-05]
[1738949444070,5.1117,195.55,195.41,1.8111]
[1738949444275,0.03295122,195.64,195.41,4.2338]
[1738949444276,22.5940388,195.56,195.41,4.2338]
[1738949444762,22.5940388,195.59,195.41,4.2338]
[1738949445161,22.5940388,195.56,195.41,4.2338]
[1738949445366,0.03481651,195.52,195.41,4.2338]
[1738949445566,5.113,195.5,195.41,4.2338]
[1738949445759,22.5940388,195.53,195.41,4.2338]
[1738949445969,0.03238006,195.47,195.41,4.2338]
[1738949446366,22.5940388,195.46,195.29,22.5940388]
[1738949446567,22.5940388,195.46,195.3,4.2338]
[1738949446768,22.5940388,195.46,195.31,1.8449]
[1738949446967,0.03498056,195.4,195.32,22.5940388]
[1738949447170,5.1132,195.49,195.4,5.1152]
[1738949447369,5.1132,195.49,195.32,22.5940388]
[1738949447370,22.5940388,195.52,195.32,22.5940388]
[1738949447573,22.5940388,195.52,195.35,22.5940388]
[1738949447867,5.1128,195.5,195.43,5.1146]
[1738949448270,5.1122,195.53,195.44,2.5149]
[1738949448569,0.03905129,195.48,195.45,0.03726833]
[1738949448766,0.03905129,195.48,195.46,5.1138]
[1738949448963,22.5940388,195.55,195.46,5.1138]
[1738949449167,0.03258342,195.49,195.46,5.1138]
[1738949449569,4.54,195.57,195.45,0.03726833]
[1738949449771,22.5940388,195.58,195.45,1.84836833]
[1738949450077,5.1114,195.56,195.45,1.8111]
[1738949450669,4.54,195.61,195.45,1.8111]
[1738949450670,0.03561318,195.52,195.49,0.0332388]
[1738949450869,4.54,195.61,195.49,0.0332388]
[1738949451071,5.1102,195.6,195.53,5.1117]
[1738949451574,22.5940388,195.64,195.45,24.4051388]
[1738949451764,22.5940388,195.64,195.49,22.5940388]
[1738949452069,0.03439966,195.56,195.53,0.03362181]
[1738949452265,22.5940388,195.64,195.53,0.03362181]
[1738949452266,5.11,195.61,195.53,0.03362181]
[1738949452468,0.0382052,195.56,195.53,0.03362181]
[1738949452676,22.5940388,195.64,195.53,0.03362181]
[1738949452873,0.03424916,195.56,195.53,0.03362181]
[1738949453074,22.5940388,195.57,195.53,0.03362181]
[1738949453268,0.03823234,195.56,195.45,1.8111]
[1738949453466,0.03823234,195.56,195.45,6.9251]
[1738949453673,0.03823234,195.56,195.45,1.8111]
[1738949453868,22.5940388,195.53,195.44,2.5149]
[1738949454566,36.75805707,195.52,195.41,5.1151]
[1738949454769,0.03382765,195.48,195.41,5.1151]
[1738949454974,0.03382765,195.48,195.45,0.03834217]
[1738949455171,5.1136,195.47,195.45,0.03834217]
[1738949455373,0.03382765,195.48,195.45,0.03834217]
[1738949456584,5.14732765,195.48,195.45,0.03834217]
[1738949457078,4.54,195.56,195.45,0.03834217]
[1738949458176,5.114,195.59,195.45,0.03834217]
[1738949458375,0.03917575,195.52,195.45,36.79639924]
[1738949458575,5.1107,195.58,195.52,5.112]
[1738949458977,4.54,195.62,195.48,36.75805707]
[1738949459676,5.1107,195.58,195.48,36.75805707]
[1738949459873,0.03229416,195.57,195.53,0.03639454]
[1738949460374,5.1117,195.54,195.53,9.454e-05]
[1738949461080,36.75805707,195.55,195.38,1.7305]
[1738949461381,36.75805707,195.47,195.31,118.582602]
[1738949461582,5.1155,195.4,195.33,5.1172]
[1738949462175,36.75805707,195.44,195.33,5.1172]
[1738949462379,0.03432961,195.38,195.35,0.03455313]
[1738949462976,5.1164,195.36,195.35,0.03455313]
[1738949463576,5.1164,195.36,195.35,5.313e-05]
[1738949464982,5.15042961,195.38,195.35,5.313e-05]
[1738949465478,5.1162,195.37,195.35,5.313e-05]
[1738949465681,0.03432961,195.38,195.35,5.313e-05]
[1738949469779,5.1164,195.36,195.35,5.313e-05]
[1738949472582,9.6564,195.36,195.35,5.313e-05]
[1738949475675,0.03432961,195.38,195.35,5.313e-05]
[1738949475881,5.15032961,195.38,195.35,5.313e-05]
[1738949476384,5.1164,195.37,195.35,5.313e-05]
[1738949478188,5.15022961,195.38,195.35,5.313e-05]
[1738949478487,0.03432961,195.38,195.35,5.313e-05]
[1738949478890,191.0,195.59,195.35,5.313e-05]
[1738949478891,36.75805707,195.49,195.35,5.313e-05]
[1738949479092,4.54,195.51,195.36,36.75805707]
[1738949479389,5.1136,195.47,195.41,5.1149]
[1738949479781,4.54,195.51,195.37,4.174]
[1738949480283,0.03816279,195.46,195.42,0.03776926]
[1738949480989,4.7262,195.56,195.43,5.1145]
[1738949481391,4.54,195.56,195.39,36.75805707]
[1738949481592,5.1123,195.52,195.46,5.1138]
[1738949482000,41.29805707,195.58,195.39,36.75805707]
[1738949482301,0.03425153,195.51,195.47,0.03513348]
[1738949483598,5.1133,195.49,195.47,0.03513348]
[1738949483800,0.03425153,195.51,195.47,0.03513348]
[1738949484200,5.1133,195.48,195.47,0.03513348]
[1738949484705,0.03425153,195.51,195.47,0.03513348]
[1738949486199,4.54,195.59,195.47,0.03513348]
[1738949486404,4.54,195.59,195.47,22.60545451]
[1738949486600,5.1109,195.58,195.52,5.112]
[1738949486904,4.54,195.59,195.48,4.1416]
[1738949487506,0.03616198,195.55,195.52,0.03531406]
[1738949487705,123.94545451,195.64,195.48,4.1416]
[1738949487706,22.60545451,195.68,195.5,22.60545451]
[1738949488106,5.1096,195.62,195.5,22.60545451]
[1738949488701,22.60545451,195.68,195.5,22.60545451]
[1738949488910,0.03556617,195.58,195.54,0.03929914]
[1738949489413,0.03306093,195.58,195.54,0.03688052]
[1738949489814,5.1099,195.61,195.54,5.14858052]
[1738949490117,22.60545451,195.61,195.48,4.1416]
[1738949491011,0.03643008,195.56,195.55,5.1114]
[1738949491211,0.03643008,195.56,195.53,0.03670169]
[1738949491405,22.60545451,195.61,195.51,1.8585]
[1738949491709,0.03636043,195.56,195.48,4.1416]
[1738949492305,0.03636043,195.56,195.5,0.03869409]
[1738949494517,5.1125,195.51,195.5,0.03869409]
[1738949494720,0.03636043,195.56,195.5,0.03869409]
[1738949494920,5.1125,195.51,195.5,0.03869409]
[1738949495614,36.70990322,195.51,195.42,2.5496]
[1738949495818,36.70990322,195.48,195.41,1.8585]
[1738949496011,36.70990322,195.48,195.36,5.1163]
[1738949496314,36.70990322,195.48,195.35,2.5929]
[1738949496924,0.03830478,195.43,195.4,0.03279979]
[1738949498412,0.03830478,195.43,195.4,5.14809979]
[1738949498614,0.03830478,195.43,195.4,0.03279979]
[1738949499518,0.03830478,195.43,195.4,5.14809979]
[1738949499727,0.03830478,195.43,195.4,0.03279979]
[1738949501825,5.1151,195.41,195.4,0.03279979]
[1738949502518,41.82500322,195.41,195.4,9.979e-05]
[1738949504219,36.70990322,195.41,195.26,1.8642]
[1738949504423,36.70990322,195.37,195.26,1.8642]
[1738949504614,36.70990322,195.37,195.25,2.4161]
[1738949504819,36.70990322,195.33,195.25,2.4161]
[1738949505017,5.119,195.27,195.25,2.4161]
[1738949505423,5.1193,195.25,195.24,0.03295358]
[1738949505822,0.03386931,195.28,195.24,0.03295358]
[1738949506018,9.654,195.42,195.24,0.03295358]
[1738949506019,36.70990322,195.37,195.24,0.03295358]
[1738949506218,36.70990322,195.41,195.24,0.03295358]
[1738949506421,36.70990322,195.41,195.25,36.70990322]
[1738949506726,36.70990322,195.45,195.29,36.70990322]
[1738949506929,36.70990322,195.45,195.3,4.4314]
[1738949507119,5.1154,195.41,195.34,5.1169]
[1738949507321,36.70990322,195.45,195.3,4.4314]
[1738949507524,0.03622081,195.39,195.36,0.03509834]
[1738949508230,5.1159,195.38,195.36,0.03509834]
[1738949508424,0.03622081,195.39,195.36,0.03509834]
[1738949509427,0.03622081,195.39,195.36,5.15129834]
[1738949510234,36.70990322,195.5,195.38,5.1159]
[1738949510427,4.54,195.49,195.38,5.1159]
[1738949510623,5.1136,195.47,195.34,36.70990322]
[1738949510831,4.54,195.49,195.4,5.1153]
[1738949511527,0.03828672,195.46,195.43,0.0360069]
[1738949511724,41.24990322,195.56,195.39,1.7611]
[1738949512122,5.1123,195.52,195.45,5.1138]
[1738949512334,41.24990322,195.56,195.39,1.7611]
[1738949512532,41.24990322,195.56,195.44,5.1141]
[1738949512533,5.1125,195.51,195.44,5.1141]
[1738949512732,22.61170068,195.55,195.39,1.7611]
[1738949513034,0.03756272,195.49,195.46,0.03462752]
[1738949516137,5.1135,195.47,195.46,2.752e-05]
[1738949516524,5.1135,195.47,195.35,1.8601]
[1738949516525,5.1155,195.4,195.35,1.8601]
[1738949516924,27.15170068,195.44,195.35,1.8601]
[1738949517128,27.15170068,195.44,195.32,1.7355]
[1738949517434,4.54,195.44,195.37,5.116]
[1738949517738,0.03787202,195.4,195.36,0.03824658]
[1738949518132,5.1162,195.37,195.36,0.03824658]
[1738949519332,5.1162,195.37,195.36,4.658e-05]
[1738949520638,5.118,195.3,195.24,1.7184]
[1738949520832,22.61170068,195.37,195.24,1.7184]
[1738949521235,22.61170068,195.4,195.24,1.7184]
[1738949521429,22.61170068,195.4,195.28,5.1183]
[1738949521634,5.1164,195.37,195.26,22.61170068]
[1738949521834,0.03650823,195.36,195.32,0.03907633]
[1738949522234,0.03650823,195.36,195.32,5.15637633]
[1738949522441,0.03650823,195.36,195.32,0.03907633]
[1738949523843,5.1172,195.33,195.32,0.03907633]
[1738949525146,0.03650823,195.36,195.32,0.03907633]
[1738949525533,5.117,195.34,195.32,0.03907633]
[1738949525738,0.03650823,195.36,195.32,0.03907633]
[1738949526244,5.1172,195.33,195.32,0.03907633]
[1738949527339,5.117,195.34,195.32,0.03907633]
[1738949527540,0.03650823,195.36,195.32,0.03907633]
[1738949528243,4.54,195.46,195.32,0.03907633]
[1738949528436,80.86191388,195.5,195.36,36.80763398]
[1738949528933,80.86191388,195.5,195.4,36.80763398]
[1738949529133,80.86191388,195.5,195.45,5.1138]
[1738949529533,0.03393206,195.49,195.46,0.03458391]
[1738949530944,97.72919276,195.59,195.47,36.80763398]
[1738949531540,36.80763398,195.64,195.47,36.80763398]
[1738949532234,0.03245473,195.57,195.54,0.03894823]
[1738949534940,36.80763398,195.56,195.44,1.7524]
[1738949535147,4.54,195.55,195.44,1.7524]
[1738949535647,4.54,195.55,195.48,5.1131]
[1738949535839,4.54,195.55,195.44,1.7524]
[1738949536140,0.03313279,195.51,195.48,0.03767526]
[1738949536845,5.1128,195.5,195.48,0.03767526]
[1738949537242,0.03313279,195.51,195.48,0.03767526]
[1738949537943,41.34763398,195.63,195.48,0.03767526]
[1738949538144,36.80763398,195.6,195.44,99.10519079]
[1738949538543,5.1122,195.53,195.44,99.10519079]
[1738949539045,0.03726591,195.5,195.47,0.03314804]
[1738949539347,5.1118,195.54,195.46,5.1136]
[1738949539545,0.03863206,195.5,195.47,0.03415712]
[1738949539743,5.1123,195.52,195.44,99.10519079]
[1738949540046,0.03752355,195.5,195.47,0.03562634]
[1738949540342,36.80763398,195.57,195.44,99.10519079]
[1738949540546,0.03690729,195.5,195.47,0.03895181]
[1738949541248,4.54,195.63,195.48,36.80763398]
[1738949541447,36.80763398,195.65,195.48,36.80763398]
[1738949541646,41.34763398,195.65,195.48,36.80763398]
[1738949541848,5.1106,195.59,195.52,5.1122]
[1738949542149,41.34763398,195.65,195.48,36.80763398]
[1738949542350,0.03471483,195.57,195.54,0.03563268]
[1738949542545,36.80763398,195.61,195.54,0.03563268]
[1738949542850,0.03794013,195.57,195.54,0.03563268]
[1738949543042,5.1115,195.55,195.54,0.03563268]
[1738949543244,0.03794013,195.57,195.54,0.03563268]
[1738949544144,0.03794013,195.57,195.55,5.1114]
[1738949544348,0.03794013,195.57,195.54,0.03563268]
[1738949544738,0.03794013,195.57,195.54,5.14733268]
[1738949546549,0.03794013,195.57,195.54,0.03563268]
[1738949547143,0.03794013,195.57,195.55,5.1113]
[1738949548240,0.03794013,195.57,195.54,5.14733268]
[1738949548843,0.03794013,195.57,195.54,0.03563268]
[1738949549841,5.1115,195.55,195.54,0.03563268]
[1738949550842,22.58873746,195.56,195.44,1.7524]
[1738949551042,22.58873746,195.52,195.41,1.8374]
[1738949551248,22.58873746,195.49,195.34,1.8693]
[1738949551450,5.1144,195.44,195.37,5.1162]
[1738949551649,22.58873746,195.46,195.34,3.717]
[1738949552154,0.03918919,195.42,195.38,0.03560027]
[1738949552348,22.58873746,195.4,195.38,0.03560027]
[1738949552547,5.1167,195.35,195.29,1.8477]
[1738949552848,36.81004052,195.39,195.29,1.8477]
[1738949553549,5.1158,195.39,195.3,5.118]
[1738949553757,0.03238684,195.36,195.32,0.03890819]
[1738949554247,4.52,195.48,195.32,0.03890819]
[1738949554449,4.52,195.48,195.34,36.81004052]
[1738949554642,4.52,195.48,195.35,1.8036]
[1738949554843,37.73678276,195.47,195.35,1.8036]
[1738949555044,36.81004052,195.47,195.35,1.8036]
[1738949555247,36.81004052,195.47,195.31,5.1177]
[1738949555448,36.81004052,195.44,195.29,99.20049079]
[1738949555651,0.03866381,195.43,195.39,0.03370699]
[1738949555960,36.81004052,195.47,195.31,36.81004052]
[1738949556155,36.81004052,195.47,195.32,2.5498]
[1738949556354,36.81004052,195.47,195.39,0.0330261]
[1738949556355,0.03870968,195.43,195.39,0.0330261]
[1738949556556,36.81004052,195.41,195.29,99.20049079]
[1738949556757,5.1161,195.38,195.29,1.8477]
[1738949557052,36.81004052,195.41,195.29,1.8477]
[1738949557458,5.1161,195.38,195.29,6.966]
[1738949557652,36.81004052,195.41,195.29,6.966]
[1738949557853,0.03797959,195.37,195.33,0.03678233]
[1738949560568,0.03797959,195.37,195.34,5.1169]
[1738949560955,0.03797959,195.37,195.33,0.03678233]
[1738949561662,36.84802011,195.37,195.33,0.03678233]
[1738949562256,5.117,195.34,195.33,0.03678233]
[1738949563462,0.03797959,195.37,195.33,0.03678233]
[1738949563962,0.03797959,195.37,195.33,5.15388233]
[1738949564457,0.03797959,195.37,195.33,0.03678233]
[1738949564762,0.03797959,195.37,195.34,5.1167]
[1738949564962,0.03797959,195.37,195.33,0.03678233]
[1738949566858,5.1169,195.35,195.33,0.03678233]
[1738949567064,0.03797959,195.37,195.33,5.15398233]
[1738949567257,0.03797959,195.37,195.33,0.03678233]
[1738949567857,0.03797959,195.37,195.33,5.15378233]
[1738949568066,0.03797959,195.37,195.33,0.03678233]
[1738949568263,4.52,195.46,195.33,0.03678233]
[1738949568459,4.52,195.46,195.36,5.1162]
[1738949568668,5.1136,195.47,195.32,36.81004052]
[1738949568963,4.52,195.52,195.36,36.81004052]
[1738949569160,4.52,195.52,195.4,36.81004052]
[1738949569465,0.03226388,195.46,195.42,0.03746046]
[1738949569665,41.33004052,195.58,195.42,0.03746046]
[1738949569867,106.3712,195.56,195.42,0.03746046]
[1738949570059,5.1112,195.56,195.44,36.81004052]
[1738949570367,5.1113,195.56,195.45,1.7417]
[1738949570561,4.52,195.59,195.45,1.7417]
[1738949570958,0.03608972,195.52,195.49,0.03758936]
[1738949571261,122.1919544,195.62,195.49,0.03758936]
[1738949571661,127.3059544,195.62,195.45,1.7417]
[1738949571867,0.92878203,195.61,195.45,1.7417]
[1738949572062,5.1125,195.51,195.45,1.7417]
[1738949572259,36.81004052,195.58,195.51,0.0349821]
[1738949572464,0.03327117,195.55,195.51,0.0349821]
[1738949572658,36.81004052,195.58,195.45,1.7417]
[1738949572864,0.03297519,195.55,195.51,0.03568426]
[1738949573866,5.1122,195.52,195.51,8.426e-05]
[1738949574063,41.92224052,195.52,195.51,8.426e-05]
[1738949574459,5.1122,195.52,195.51,8.426e-05]
[1738949574662,5.14447519,195.55,195.51,8.426e-05]
[1738949574968,0.03297519,195.55,195.51,8.426e-05]
[1738949577467,5.11,195.61,195.53,5.1118]
[1738949577667,36.81004052,195.63,195.53,5.1118]
[1738949578467,36.81004052,195.63,195.56,0.03761697]
[1738949578468,0.03323775,195.6,195.56,0.03761697]
[1738949579371,0.03323775,195.6,195.56,1.697e-05]
[1738949579372,36.84327827,195.6,195.56,1.697e-05]
[1738949579568,0.92812046,195.59,195.56,1.697e-05]
[1738949580060,36.84327827,195.6,195.56,1.697e-05]
[1738949580260,5.1109,195.57,195.56,1.697e-05]
[1738949580875,5.1137,195.47,195.42,97.35279079]
[1738949581074,36.81004052,195.52,195.4,2.5291]
[1738949581371,5.1137,195.47,195.4,2.5291]
[1738949581566,36.81004052,195.52,195.4,2.5291]
[1738949581767,36.81004052,195.48,195.37,1.7697]
[1738949581964,36.81004052,195.45,195.44,6.216e-05]
[1738949582366,36.81004052,195.45,195.31,4.2272]
[1738949582572,0.7042,195.49,195.31,4.2272]
[1738949582573,36.81004052,195.42,195.32,1.8217]
[1738949582770,4.52,195.41,195.32,1.8217]
[1738949583075,5.116,195.38,195.32,1.8217]
[1738949583273,0.03716333,195.38,195.35,0.03564354]
[1738949584474,4.52,195.41,195.35,0.03564354]
[1738949585174,36.81004052,195.4,195.35,0.03564354]
[1738949585574,5.1164,195.36,195.35,0.03564354]
[1738949585774,0.03923758,195.39,195.35,0.03564354]
[1738949586769,4.52,195.47,195.37,5.1161]
[1738949586970,4.52,195.47,195.36,1.7545]
[1738949587174,5.1146,195.43,195.36,1.7545]
[1738949587375,41.33004052,195.47,195.36,1.7545]
[1738949587574,0.92799266,195.46,195.32,97.35279079]
[1738949587974,36.81004052,195.44,195.32,97.35279079]
[1738949588175,0.03744606,195.41,195.37,0.03902408]
[1738949589579,0.03744606,195.41,195.37,5.15502408]
[1738949589769,0.03744606,195.41,195.37,0.03902408]
[1738949590169,0.03744606,195.41,195.38,5.1159]
[1738949590373,0.03744606,195.41,195.37,0.03902408]
[1738949590677,0.03744606,195.41,195.37,5.15492408]
[1738949591175,0.03744606,195.41,195.37,0.03902408]
[1738949591472,5.1154,195.4,195.37,0.03902408]
[1738949593281,0.03744606,195.41,195.37,0.03902408]
[1738949593282,5.1159,195.38,195.37,0.03902408]
[1738949594974,36.81004052,195.38,195.23,6.2092]
[1738949595170,4.52,195.37,195.23,6.2092]
[1738949595372,5.1175,195.33,195.26,5.119]
[1738949595571,5.1175,195.33,195.23,6.2092]
[1738949595978,0.03766259,195.3,195.26,0.03602874]
[1738949597975,0.03766259,195.3,195.26,5.15502874]
[1738949598583,0.03766259,195.3,195.26,0.03602874]
[1738949600987,5.1188,195.27,195.26,0.03602874]
[1738949601392,5.1188,195.27,195.26,2.874e-05]
[1738949606192,0.03766259,195.3,195.26,2.874e-05]
[1738949606988,5.15576259,195.3,195.26,2.874e-05]
[1738949607398,0.03766259,195.3,195.26,2.874e-05]
[1738949608300,5.1188,195.27,195.26,2.874e-05]
[1738949608697,5.1207,195.2,195.15,101.63529079]
[1738949608898,27.1965167,195.25,195.15,4.2825]
[1738949609402,5.1211,195.19,195.15,4.2825]
[1738949609594,22.6765167,195.19,195.04,22.6765167]
[1738949609804,22.6765167,195.19,195.05,1.8766]
[1738949610102,0.03933697,195.13,195.1,0.03867728]
[1738949611402,5.16173697,195.13,195.1,0.03867728]
[1738949612294,0.03933697,195.13,195.1,0.03867728]
[1738949613003,36.88340534,195.22,195.1,0.03867728]
[1738949613200,36.88340534,195.29,195.12,36.88340534]
[1738949613404,5.44556071,195.28,195.13,4.4693]
[1738949613603,4.52,195.28,195.13,101.82209079]
[1738949614204,0.03929568,195.22,195.19,0.03523873]
[1738949615003,4.52,195.32,195.19,0.03523873]
[1738949615200,4.52,195.32,195.19,36.91864407]
[1738949615396,36.88340534,195.36,195.19,36.88340534]
[1738949615606,85.38191388,195.37,195.22,36.88340534]
[1738949615802,80.86191388,195.37,195.26,36.88340534]
[1738949616003,4.52,195.41,195.33,5.1172]
[1738949616208,0.03827819,195.33,195.3,0.03927515]
[1738949616601,36.88340534,195.4,195.27,4.341]
[1738949616796,0.03865346,195.33,195.3,0.03919857]
[1738949617200,36.88340534,195.4,195.3,0.03919857]
[1738949617499,101.44,195.42,195.3,0.03919857]
[1738949617706,0.03647195,195.37,195.31,36.88340534]
[1738949617901,80.86191388,195.45,195.31,36.88340534]
[1738949618107,80.86191388,195.45,195.34,0.03671191]
[1738949618306,36.88340534,195.44,195.34,0.03671191]
[1738949619203,0.03784363,195.41,195.34,0.03671191]
[1738949619906,41.40340534,195.52,195.34,97.3895027]
[1738949620105,36.88340534,195.48,195.34,97.3895027]
[1738949620310,5.1139,195.46,195.37,5.1161]
[1738949620498,36.88340534,195.48,195.34,97.35279079]
[1738949620901,36.88340534,195.52,195.34,97.35279079]
[1738949621101,0.034063,195.43,195.39,0.03469237]
[1738949621298,4.52,195.53,195.39,2.68689237]
[1738949621506,4.52,195.53,195.45,5.1139]
[1738949621807,36.88340534,195.55,195.39,2.6522]
[1738949622008,36.88340534,195.55,195.39,100.00499079]
[1738949622404,0.92717613,195.54,195.39,100.00499079]
[1738949622607,0.03470663,195.49,195.45,0.03685713]
[1738949623005,36.88340534,195.58,195.45,0.03685713]
[1738949623403,36.88340534,195.58,195.42,1.8641]
[1738949623609,5.1117,195.55,195.46,5.1137]
[1738949624207,5.112,195.53,195.49,0.03607752]
[1738949624611,4.52,195.56,195.49,0.03607752]
[1738949626206,4.52,195.6,195.49,0.03607752]
[1738949626505,5.111,195.57,195.44,36.88340534]
[1738949626711,4.52,195.6,195.53,0.03460738]
[1738949626911,36.88340534,195.66,195.53,0.03460738]
[1738949627116,4.52,195.66,195.52,36.88340534]
[1738949627408,0.2226,195.69,195.58,0.03578213]
[1738949627613,5.1085,195.67,195.58,0.03578213]
[1738949628110,4.52,195.68,195.53,4.3306]
[1738949628305,5.1089,195.65,195.61,0.03733831]
[1738949628501,4.52,195.68,195.61,0.03733831]
[1738949629108,36.88340534,195.73,195.61,0.03733831]
[1738949629411,4.52,195.72,195.56,36.88340534]
[1738949629709,5.1076,195.7,195.65,0.03784498]
[1738949630007,36.88340534,195.73,195.65,0.03784498]
[1738949630212,5.1075,195.71,195.65,0.03784498]
[1738949630613,4.52,195.75,195.65,0.03784498]
[1738949631009,0.92895769,195.74,195.65,0.03784498]
[1738949631210,36.88340534,195.72,195.65,0.03784498]
[1738949631410,5.1086,195.66,195.65,0.03784498]
[1738949632104,36.88340534,195.68,195.54,99.10689079]
[1738949632309,36.88340534,195.64,195.54,1.7541]
[1738949632512,4.52,195.63,195.54,1.7541]
[1738949632712,36.88340534,195.61,195.54,1.7541]
[1738949632912,36.88340534,195.61,195.53,2.4821]
[1738949633516,5.1108,195.58,195.55,0.03723946]
[1738949633715,0.0388021,195.59,195.55,0.03723946]
[1738949634214,5.1494021,195.59,195.55,0.03723946]
[1738949635115,0.0388021,195.59,195.55,0.03723946]
[1738949636712,9.6088,195.65,195.57,5.1108]
[1738949636912,4.5,195.69,195.55,97.35279079]
[1738949637813,36.88340534,195.67,195.55,97.35279079]
[1738949638006,36.88340534,195.67,195.6,0.03231997]
[1738949639410,36.88340534,195.71,195.6,0.03231997]
[1738949639611,5.42715973,195.7,195.55,36.88340534]
[1738949639811,4.5,195.7,195.64,0.03672011]
[1738949640213,36.88340534,195.68,195.64,0.03672011]
[1738949640416,0.92701161,195.67,195.64,0.03672011]
[1738949640808,36.88340534,195.65,195.55,97.35279079]
[1738949641014,36.88340534,195.62,195.54,1.9013]
[1738949641314,36.88340534,195.62,195.53,2.4821]
[1738949641513,36.88340534,195.59,195.47,1.7743]
[1738949641716,36.88340534,195.59,195.48,2.4694]
[1738949641919,0.03603308,195.55,195.51,0.03565655]
[1738949642416,5.14743308,195.55,195.51,0.03565655]
[1738949642613,0.03603308,195.55,195.51,0.03565655]
[1738949643020,0.03603308,195.55,195.54,5.1117]
[1738949643222,5.1099,195.61,195.54,5.1117]
[1738949643518,4.5,195.62,195.54,5.1115]
[1738949643519,9.6098,195.62,195.54,5.1115]
[1738949643910,4.5,195.62,195.49,134.23619613]
[1738949644114,41.38340534,195.62,195.49,97.35279079]
[1738949644317,41.38340534,195.62,195.54,0.03711523]
[1738949645120,0.92535092,195.61,195.54,0.03711523]
[1738949645420,5.1113,195.56,195.54,0.03711523]
[1738949646110,41.38340534,195.62,195.54,0.03711523]
[1738949646316,5.1114,195.55,195.54,1.523e-05]
[1738949646718,5.1114,195.55,195.38,1.8641]
[1738949646719,37.8089053,195.55,195.38,1.8641]
[1738949646919,36.88340534,195.5,195.38,9.6289]
[1738949647218,41.38340534,195.5,195.38,4.513]
[1738949647421,4.5,195.5,195.38,4.513]
[1738949647720,4.5,195.5,195.4,36.88340534]
[1738949647921,0.03692516,195.46,195.42,0.03340155]
[1738949650224,5.1141,195.45,195.42,0.03340155]
[1738949650417,0.03692516,195.46,195.42,0.03340155]
[1738949650826,5.1146,195.43,195.42,0.03340155]
[1738949652221,5.1142,195.45,195.42,0.03340155]
[1738949652519,0.03692516,195.46,195.42,0.03340155]
[1738949652821,5.1123,195.52,195.45,5.114]
[1738949653027,4.5,195.55,195.43,1.7315]
[1738949653525,36.88340534,195.59,195.43,38.61490534]
[1738949653723,5.42808508,195.58,195.43,135.96769613]
[1738949653921,4.5,195.58,195.43,135.96769613]
[1738949654121,4.5,195.58,195.49,0.03717452]
[1738949654726,4.5,195.61,195.49,0.03717452]
[1738949654925,4.5,195.61,195.46,36.88340534]
[1738949655120,5.1107,195.58,195.53,0.03748009]
[1738949655631,5.1109,195.58,195.53,0.03748009]
[1738949655928,36.88340534,195.59,195.53,0.03748009]
[1738949656226,5.1113,195.56,195.53,0.03748009]
[1738949656828,36.88340534,195.59,195.53,0.03748009]
[1738949657024,0.92849223,195.58,195.53,0.03748009]
[1738949657226,36.88340534,195.62,195.53,0.03748009]
[1738949657428,5.42872261,195.61,195.53,0.03748009]
[1738949657629,0.92854705,195.6,195.53,0.03748009]
[1738949657828,36.88340534,195.59,195.53,0.03748009]
[1738949658232,5.1104,195.59,195.53,0.03748009]
[1738949658536,4.5,195.61,195.53,0.03748009]
[1738949658734,36.88340534,195.59,195.53,0.03748009]
[1738949659032,5.1117,195.54,195.53,0.03748009]
[1738949659630,36.88340534,195.56,195.44,1.7864]
[1738949659932,0.92855486,195.55,195.44,1.7864]
[1738949660130,36.88340534,195.53,195.44,1.7864]
[1738949660737,5.1133,195.49,195.47,0.0333937]
[1738949661135,0.03593409,195.5,195.47,0.0333937]
[1738949661940,4.5,195.58,195.47,0.0333937]
[1738949662541,132.08360656,195.65,195.47,134.26958983]
[1738949662542,144.94538389,195.65,195.47,134.26958983]
[1738949662846,144.94538389,195.65,195.5,36.88340534]
[1738949662847,132.08360656,195.65,195.5,36.88340534]
[1738949663141,4.5,195.64,195.56,0.03279482]
[1738949663741,168.7438119,195.65,195.56,0.03279482]
[1738949663936,5.1108,195.58,195.56,0.03279482]